fUST/lending_fUST_20240813
["ID","MTS","AMOUNT","RATE_DAILY","PERIOD"]
[334783710,1723559438838,-500.0,0.00013698,2]
[334783711,1723559438848,-648.40042665,0.00013698,2]
[334783712,1723559438859,-648.40042665,0.00013698,2]
[334783713,1723559438869,-368.86612925,0.00013698,2]
[334783714,1723559438879,-207.35847098,0.00013698,2]
[334783715,1723559438889,-648.40042665,0.00013698,2]
[334783716,1723559438898,-648.40042665,0.00013698,2]
[334783717,1723559438908,-648.40042665,0.00013698,2]
[334783718,1723559438917,-648.40042665,0.00013698,2]
[334783719,1723559438927,-648.40042665,0.00013698,2]
[334783720,1723559438937,-648.40042665,0.00013698,2]
[334783721,1723559438947,-648.40042665,0.00013698,2]
[334783722,1723559438957,-648.40042665,0.00013698,2]
[334783723,1723559438966,-648.40042665,0.00013698,2]
[334783724,1723559438976,-648.40042665,0.00013698,2]
[334783725,1723559438986,-648.40042665,0.00013698,2]
[334783726,1723559438996,-648.40042665,0.00013698,2]
[334783727,1723559439005,-648.40042665,0.00013698,2]
[334783728,1723559439015,-648.40042665,0.00013698,2]
[334783729,1723559439024,-683.76216262,0.00013698,2]
[334783730,1723559439038,-683.76216262,0.00013698,2]
[334783731,1723559439047,-683.76216262,0.00013698,2]
[334783732,1723559439057,-683.76216262,0.00013698,2]
[334783733,1723559439066,-683.76216262,0.00013698,2]
[334783734,1723559439076,-683.76216262,0.00013698,2]
[334783735,1723559439085,-683.76216262,0.00013698,2]
[334783736,1723559439094,-683.76216262,0.00013698,2]
[334783737,1723559439104,-1207.97982062,0.00013698,2]
[334783738,1723559439113,-500.0,0.00013698,2]
[334783739,1723559439123,-558.13731337,0.00013698,2]
[334783740,1723559439133,-502.42,0.00013698,2]
[334783741,1723559439142,-500.0,0.00013698,2]
[334783742,1723559439152,-500.0,0.00013698,2]
[334783743,1723559439161,-222.76847662,0.00013698,2]
[334783744,1723559439171,-537.09112232,0.00013698,2]
[334783745,1723559439182,-500.0,0.00013698,2]
[334783746,1723559439192,-1506.65,0.00013698,2]
[334783747,1723559439202,-1048.53,0.00013698,2]
[334783748,1723559439212,-500.0,0.00013698,2]
[334783749,1723559439221,-500.0,0.00013698,2]
[334783750,1723559439231,-500.0,0.00013698,2]
[334783751,1723559439240,-500.0,0.00013698,2]
[334783752,1723559439249,-179.66511161,0.00013698,2]
[334783753,1723559439259,-500.0,0.00013698,2]
[334783754,1723559439269,-500.0,0.00013698,2]
[334783755,1723559439281,-500.0,0.00013698,2]
[334783756,1723559439291,-500.0,0.00013698,2]
[334783757,1723559439300,-500.0,0.00013698,2]
[334783758,1723559439309,-500.0,0.00013698,2]
[334783759,1723559439318,-324.31541479,0.00013698,2]
[334783760,1723559439327,-500.0,0.00013698,2]
[334783761,1723559439336,-500.0,0.00013698,2]
[334783762,1723559439346,-625.05784409,0.00013698,2]
[334783763,1723559439355,-886.67,0.00013698,2]
[334783764,1723559439365,-500.0,0.00013698,2]
[334783765,1723559439375,-790.37,0.00013698,2]
[334783766,1723559439384,-500.0,0.00013698,2]
[334783767,1723559439393,-500.0,0.00013698,2]
[334783768,1723559439402,-578.67,0.00013698,2]
[334783769,1723559439411,-500.0,0.00013698,2]
[334783770,1723559439421,-500.0,0.00013698,2]
[334783771,1723559439430,-500.0,0.00013698,2]
[334783772,1723559439439,-538.63,0.00013698,2]
[334783773,1723559439449,-500.0,0.00013698,2]
[334783774,1723559439460,-500.0,0.00013698,2]
[334783775,1723559439470,-500.0,0.00013698,2]
[334783776,1723559439481,-500.0,0.00013698,2]
[334783777,1723559439491,-500.0,0.00013698,2]
[334783778,1723559439501,-655.98,0.00013698,2]
[334783779,1723559439511,-803.13,0.00013698,2]
[334783780,1723559439522,-500.0,0.00013698,2]
[334783781,1723559439535,-500.0,0.00013698,2]
[334783782,1723559439545,-500.0,0.00013698,2]
[334783783,1723559439554,-500.0,0.00013698,2]
[334783784,1723559439564,-509.28732185,0.00013698,2]
[334783785,1723559439573,-500.0,0.00013698,2]
[334783786,1723559439582,-500.0,0.00013698,2]
[334783787,1723559439591,-518.10187527,0.00013698,2]
[334783788,1723559439601,-500.0,0.00013698,2]
[334783789,1723559439612,-500.0,0.00013698,2]
[334783790,1723559439622,-506.10342775,0.00013698,2]
[334783791,1723559439632,-500.0,0.00013698,2]
[334783792,1723559439642,-518.15476045,0.00013698,2]
[334783793,1723559439652,-302.02855473,0.00013698,2]
[334783794,1723559439662,-500.0,0.00013698,2]
[334783795,1723559439672,-515.05213383,0.00013698,2]
[334783796,1723559439682,-500.0,0.00013698,2]
[334783797,1723559439691,-500.0,0.00013698,2]
[334783798,1723559439701,-500.0,0.00013698,2]
[334783799,1723559439712,-500.0,0.00013698,2]
[334783800,1723559439723,-500.0,0.00013698,2]
[334783801,1723559439734,-500.0,0.00013698,2]
[334783802,1723559439745,-500.0,0.00013698,2]
[334783803,1723559439756,-514.45262368,0.00013698,2]
[334783804,1723559439766,-522.27,0.00013698,2]
[334783805,1723559439776,-500.0,0.00013698,2]
[334783806,1723559439790,-500.0,0.00013698,2]
[334783807,1723559439799,-500.0,0.00013698,2]
[334783810,1723559439809,-500.0,0.00013698,2]
[334783811,1723559439820,-500.0,0.00013698,2]
[334783812,1723559439829,-500.0,0.00013698,2]
[334783813,1723559439840,-500.0,0.00013698,2]
[334783814,1723559439850,-503.24555776,0.00013698,2]
[334783815,1723559439860,-500.0,0.00013698,2]
[334783816,1723559439869,-500.0,0.00013698,2]
[334783817,1723559439879,-503.6887129,0.00013698,2]
[334783818,1723559439889,-500.0,0.00013698,2]
[334783819,1723559439898,-500.0,0.00013698,2]
[334783820,1723559439907,-500.0,0.00013698,2]
[334783821,1723559439917,-500.0,0.00013698,2]
[334783822,1723559439926,-580.36,0.00013698,2]
[334783823,1723559439936,-758.87,0.00013698,2]
[334783824,1723559439946,-649.12,0.00013698,2]
[334783826,1723559439956,-500.0,0.00013698,2]
[334783828,1723559439966,-500.0,0.00013698,2]
[334783830,1723559439976,-505.9565507,0.00013698,2]
[334783831,1723559439985,-500.0,0.00013698,2]
[334783832,1723559439995,-501.91736511,0.00013698,2]
[334783833,1723559440004,-500.0,0.00013698,2]
[334783834,1723559440014,-503.34967199,0.00013698,2]
[334783835,1723559440024,-500.0,0.00013698,2]
[334783836,1723559440040,-595.26889214,0.00013698,2]
[334783837,1723559440050,-500.0,0.00013698,2]
[334783838,1723559440059,-500.0,0.00013698,2]
[334783839,1723559440068,-429.04944771,0.00013698,2]
[334783840,1723559440382,-70.95055229,0.00013698,2]
[334783841,1723559440393,-708.34,0.00013698,2]
[334783842,1723559440403,-500.0,0.00013698,2]
[334783843,1723559440412,-500.0,0.00013698,2]
[334783844,1723559440422,-500.0,0.00013698,2]
[334783845,1723559440432,-201.19215877,0.00013698,2]
[334783846,1723559440442,-504.41781418,0.00013698,2]
[334783847,1723559440452,-500.0,0.00013698,2]
[334783848,1723559440462,-500.0,0.00013698,2]
[334783849,1723559440473,-500.0,0.00013698,2]
[334783850,1723559440482,-500.0,0.00013698,2]
[334783851,1723559440491,-500.0,0.00013698,2]
[334783852,1723559440501,-522.94361053,0.00013698,2]
[334783853,1723559440511,-500.0,0.00013698,2]
[334783854,1723559440520,-500.0,0.00013698,2]
[334783855,1723559440535,-500.0,0.00013698,2]
[334783856,1723559440544,-500.0,0.00013698,2]
[334783857,1723559440554,-500.0,0.00013698,2]
[334783858,1723559440565,-500.0,0.00013698,2]
[334783859,1723559440577,-500.0,0.00013698,2]
[334783860,1723559440586,-500.0,0.00013698,2]
[334783861,1723559440596,-500.0,0.00013698,2]
[334783862,1723559440605,-500.0,0.00013698,2]
[334783863,1723559440617,-500.0,0.00013698,2]
[334783864,1723559440627,-1206.84,0.00013698,2]
[334783865,1723559440637,-1206.84,0.00013698,2]
[334783866,1723559440647,-1206.84,0.00013698,2]
[334783867,1723559440657,-1206.84,0.00013698,2]
[334783868,1723559440668,-500.0,0.00013698,2]
[334783869,1723559440679,-1206.84,0.00013698,2]
[334783870,1723559440692,-1206.84,0.00013698,2]
[334783871,1723559440703,-1206.84,0.00013698,2]
[334783872,1723559440717,-1206.84,0.00013698,2]
[334783873,1723559440728,-1206.84,0.00013698,2]
[334783874,1723559440740,-1206.84,0.00013698,2]
[334783875,1723559440753,-1206.84,0.00013698,2]
[334783876,1723559440763,-1206.84,0.00013698,2]
[334783877,1723559440775,-1206.84,0.00013698,2]
[334783878,1723559440789,-587.01,0.00013698,2]
[334783879,1723559440800,-1206.84,0.00013698,2]
[334783880,1723559440809,-1206.84,0.00013698,2]
[334783881,1723559440822,-1206.84,0.00013698,2]
[334783882,1723559440831,-1206.84,0.00013698,2]
[334783883,1723559440841,-1206.84,0.00013698,2]
[334783884,1723559440851,-1189.07,0.00013698,2]
[334783885,1723559440861,-509.0994654,0.00013698,2]
[334783886,1723559440871,-656.25,0.00013698,2]
[334783887,1723559440881,-500.0,0.00013698,2]
[334783888,1723559440892,-500.0,0.00013698,2]
[334783889,1723559440901,-500.0,0.00013698,2]
[334783890,1723559440911,-500.0,0.00013698,2]
[334783891,1723559440920,-876.28,0.00013698,2]
[334783892,1723559440930,-708.17,0.00013698,2]
[334783893,1723559440939,-500.0,0.00013698,2]
[334783894,1723559440948,-506.37693255,0.00013698,2]
[334783895,1723559440958,-1307.35,0.00013698,2]
[334783896,1723559440968,-532.94554107,0.00013698,2]
[334783897,1723559440977,-500.0,0.00013698,2]
[334783898,1723559440986,-500.0,0.00013698,2]
[334783899,1723559440996,-500.0,0.00013698,2]
[334783900,1723559441005,-720.93,0.00013698,2]
[334783901,1723559441014,-1625.97,0.00013698,2]
[334783902,1723559441023,-818.98,0.00013698,2]
[334783903,1723559441039,-505.62042349,0.00013698,2]
[334783904,1723559441048,-680.48,0.00013698,2]
[334783905,1723559441062,-784.09,0.00013698,2]
[334783906,1723559441072,-516.48352692,0.00013698,2]
[334783907,1723559441081,-500.0,0.00013698,2]
[334783908,1723559441091,-500.0,0.00013698,2]
[334783909,1723559441100,-2394.91,0.00013698,2]
[334783910,1723559441110,-500.0,0.00013698,2]
[334783911,1723559441119,-1214.43,0.00013698,2]
[334783912,1723559441128,-500.0,0.00013698,2]
[334783913,1723559441139,-500.0,0.00013698,2]
[334783914,1723559441148,-500.0,0.00013698,2]
[334783915,1723559441157,-500.0,0.00013698,2]
[334783916,1723559441167,-500.0,0.00013698,2]
[334783917,1723559441177,-500.0,0.00013698,2]
[334783918,1723559441187,-500.0,0.00013698,2]
[334783919,1723559441196,-500.0,0.00013698,2]
[334783920,1723559441206,-6211.78,0.00013698,2]
[334783921,1723559441215,-673.86,0.00013698,2]
[334783922,1723559441224,-500.0,0.00013698,2]
[334783923,1723559441233,-500.0,0.00013698,2]
[334783924,1723559441243,-500.0,0.00013698,2]
[334783925,1723559441252,-721.64,0.00013698,2]
[334783926,1723559441393,-499.99999999,0.00013698,2]
[334783927,1723559441406,-500.0,0.00013698,2]
[334783928,1723559441415,-1845.84,0.00013698,2]
[334783929,1723559441425,-304.98898775,0.00013698,2]
[334783930,1723559441435,-500.0,0.00013698,2]
[334783931,1723559441444,-500.0,0.00013698,2]
[334783932,1723559441454,-734.5,0.00013698,2]
[334783933,1723559441463,-500.0,0.00013698,2]
[334783934,1723559441474,-1029.66,0.00013698,2]
[334783935,1723559441484,-500.0,0.00013698,2]
[334783936,1723559441494,-500.0,0.00013698,2]
[334783937,1723559441503,-500.0,0.00013698,2]
[334783938,1723559441514,-500.0,0.00013698,2]
[334783939,1723559441524,-982.15,0.00013698,2]
[334783940,1723559441542,-500.0,0.00013698,2]
[334783941,1723559441555,-500.0,0.00013698,2]
[334783942,1723559441565,-500.0,0.00013698,2]
[334783943,1723559441574,-500.0,0.00013698,2]
[334783944,1723559441584,-500.0,0.00013698,2]
[334783945,1723559441594,-500.0,0.00013698,2]
[334783946,1723559441603,-500.0,0.00013698,2]
[334783947,1723559441613,-510.18680554,0.00013698,2]
[334783948,1723559441622,-500.0,0.00013698,2]
[334783949,1723559441631,-321.49756004,0.00013698,2]
[334783950,1723559441641,-810.59,0.00013698,2]
[334783951,1723559441650,-848.3,0.00013698,2]
[334783952,1723559441660,-508.09704504,0.00013698,2]
[334783953,1723559441670,-500.0,0.00013698,2]
[334783954,1723559441679,-500.0,0.00013698,2]
[334783955,1723559441689,-1448.44,0.00013698,2]
[334783956,1723559441701,-816.05,0.00013698,2]
[334783957,1723559441711,-1035.0,0.00013698,2]
[334783958,1723559441721,-500.0,0.00013698,2]
[334783959,1723559441732,-6071.73,0.00013698,2]
[334783960,1723559441743,-500.0,0.00013698,2]
[334783961,1723559441753,-500.0,0.00013698,2]
[334783962,1723559441764,-500.0,0.00013698,2]
[334783963,1723559441773,-801.67,0.00013698,2]
[334783964,1723559441792,-500.0,0.00013698,2]
[334783965,1723559441804,-693.72,0.00013698,2]
[334783966,1723559441814,-500.0,0.00013698,2]
[334783967,1723559441823,-500.0,0.00013698,2]
[334783968,1723559441832,-500.0,0.00013698,2]
[334783969,1723559441843,-1090.62,0.00013698,2]
[334783970,1723559441855,-556.88660646,0.00013698,2]
[334783971,1723559441865,-500.0,0.00013698,2]
[334783972,1723559441874,-1083.15,0.00013698,2]
[334783973,1723559441883,-523.84,0.00013698,2]
[334783974,1723559441892,-606.7,0.00013698,2]
[334783975,1723559441902,-1052.73,0.00013698,2]
[334783976,1723559441911,-500.0,0.00013698,2]
[334783977,1723559441920,-4408.12,0.00013698,2]
[334783978,1723559441930,-1181.74,0.00013698,2]
[334783979,1723559441940,-1050.02,0.00013698,2]
[334783980,1723559441949,-607.99166983,0.00013698,2]
[334783981,1723559441958,-1161.92,0.00013698,2]
[334783982,1723559441968,-509.83521635,0.00013698,2]
[334783983,1723559441978,-503.10998793,0.00013698,2]
[334783984,1723559441987,-812.89,0.00013698,2]
[334783985,1723559441997,-500.0,0.00013698,2]
[334783986,1723559442007,-500.0,0.00013698,2]
[334783987,1723559442016,-686.26,0.00013698,2]
[334783988,1723559442026,-500.0,0.00013698,2]
[334783989,1723559442039,-1046.14,0.00013698,2]
[334783990,1723559442049,-500.0,0.00013698,2]
[334783991,1723559442058,-616.6,0.00013698,2]
[334783992,1723559442067,-3067.71,0.00013698,2]
[334783993,1723559442077,-3433.34,0.00013698,2]
[334783994,1723559442087,-500.0,0.00013698,2]
[334783995,1723559442097,-500.0,0.00013698,2]
[334783996,1723559442107,-527.65,0.00013698,2]
[334783997,1723559442117,-951.5,0.00013698,2]
[334783998,1723559442126,-500.0,0.00013698,2]
[334783999,1723559442135,-500.0,0.00013698,2]
[334784000,1723559442145,-500.0,0.00013698,2]
[334784001,1723559442155,-1607.79,0.00013698,2]
[334784002,1723559442164,-504.50337806,0.00013698,2]
[334784003,1723559442174,-1294.07,0.00013698,2]
[334784004,1723559442184,-500.0,0.00013698,2]
[334784005,1723559442193,-896.55,0.00013698,2]
[334784006,1723559442203,-500.0,0.00013698,2]
[334784007,1723559442212,-500.0,0.00013698,2]
[334784008,1723559442222,-500.0,0.00013698,2]
[334784009,1723559442232,-661.22,0.00013698,2]
[334784010,1723559442242,-3517.8,0.00013698,2]
[334784011,1723559442252,-662.25,0.00013698,2]
[334784012,1723559442261,-500.0,0.00013698,2]
[334784013,1723559442271,-600.39,0.00013698,2]
[334784014,1723559442285,-500.0,0.00013698,2]
[334784015,1723559442294,-500.0,0.00013698,2]
[334784016,1723559442304,-1276.6,0.00013698,2]
[334784017,1723559442313,-489.56585524,0.00013698,2]
[334784018,1723559442323,-500.0,0.00013698,2]
[334784019,1723559442332,-500.0,0.00013698,2]
[334784020,1723559442342,-500.0,0.00013698,2]
[334784021,1723559442352,-500.0,0.00013698,2]
[334784022,1723559442362,-500.0,0.00013698,2]
[334784023,1723559442371,-5305.442172,0.00013699,2]
[334784024,1723559442381,-3000.0,0.00013699,2]
[334784025,1723559442392,-24672.8748664,0.00013699,2]
[334784026,1723559442403,-1121.95720944,0.00013699,2]
[334784027,1723559442412,-1121.95720944,0.00013699,2]
[334784028,1723559442422,-1121.95720944,0.00013699,2]
[334784029,1723559442431,-1121.95720944,0.00013699,2]
[334784030,1723559442441,-1121.95720944,0.00013699,2]
[334784031,1723559442451,-1121.95720944,0.00013699,2]
[334784032,1723559442460,-1121.95720944,0.00013699,2]
[334784033,1723559442469,-1121.95720944,0.00013699,2]
[334784034,1723559442480,-1121.95720944,0.00013699,2]
[334784035,1723559442489,-1121.95720944,0.00013699,2]
[334784036,1723559442500,-1121.95720944,0.00013699,2]
[334784037,1723559442511,-1121.95720944,0.00013699,2]
[334784038,1723559442520,-1121.95720944,0.00013699,2]
[334784039,1723559442531,-1121.95720944,0.00013699,2]
[334784040,1723559442540,-1121.95720944,0.00013699,2]
[334784041,1723559442551,-1121.95720944,0.00013699,2]
[334784042,1723559442560,-1121.95720944,0.00013699,2]
[334784043,1723559442570,-1121.95720944,0.00013699,2]
[334784044,1723559442580,-1121.95720944,0.00013699,2]
[334784045,1723559442590,-1121.95720944,0.00013699,2]
[334784046,1723559442600,-1121.95720944,0.00013699,2]
[334784048,1723559442610,-1121.95720944,0.00013699,2]
[334784049,1723559442620,-1121.95720944,0.00013699,2]
[334784050,1723559442630,-1121.95720944,0.00013699,2]
[334784051,1723559442639,-1121.95720944,0.00013699,2]
[334784053,1723559442649,-1121.95720944,0.00013699,2]
[334784054,1723559442658,-1121.95720944,0.00013699,2]
[334784055,1723559442667,-1121.95720944,0.00013699,2]
[334784056,1723559442678,-1121.95720944,0.00013699,2]
[334784057,1723559442687,-1121.95720944,0.00013699,2]
[334784058,1723559442697,-1121.95720944,0.00013699,2]
[334784059,1723559442708,-1121.95720944,0.00013699,2]
[334784060,1723559442723,-1121.95720944,0.00013699,2]
[334784061,1723559442734,-1121.95720947,0.00013699,2]
[334784062,1723559442745,-1121.95720947,0.00013699,2]
[334784063,1723559442755,-1121.95720947,0.00013699,2]
[334784064,1723559442764,-1121.95720947,0.00013699,2]
[334784065,1723559442775,-1121.95720947,0.00013699,2]
[334784066,1723559442787,-1121.95720945,0.00013699,2]
[334784067,1723559442798,-150.112233,0.000137,2]
[334784068,1723559442808,-150.0,0.00013768,2]
[334784069,1723559442819,-508.0,0.00013768,2]
[334784072,1723559442829,-1413.0,0.00013768,2]
[334784075,1723559442839,-150.112233,0.000138,2]
[334784078,1723559442850,-150.112233,0.000139,2]
[334784080,1723559442859,-1206.84,0.00013971,2]
[334784083,1723559442869,-1206.84,0.00013971,2]
[334784087,1723559442881,-1206.84,0.00013971,2]
[334784089,1723559442891,-1206.84,0.00013971,2]
[334784090,1723559442901,-1206.84,0.00013971,2]
[334784091,1723559442911,-1207.05448115,0.00013971,2]
[334784092,1723559442921,-500.0,0.00013972,2]
[334784093,1723559442935,-500.0,0.00013972,2]
[334784094,1723559442946,-502.42,0.00013972,2]
[334784095,1723559442956,-500.0,0.00013972,2]
[334784096,1723559442966,-500.0,0.00013972,2]
[334784099,1723559442976,-1506.65,0.00013972,2]
[334784100,1723559442986,-1048.53,0.00013972,2]
[334784102,1723559442995,-500.0,0.00013972,2]
[334784104,1723559443005,-500.0,0.00013972,2]
[334784106,1723559443016,-500.0,0.00013972,2]
[334784107,1723559443025,-500.0,0.00013972,2]
[334784108,1723559443038,-500.0,0.00013972,2]
[334784109,1723559443047,-500.0,0.00013972,2]
[334784110,1723559443059,-367.12412063,0.00013972,2]
[334784111,1723559443069,-500.0,0.00013972,2]
[334784112,1723559443079,-500.0,0.00013972,2]
[334784113,1723559443089,-500.0,0.00013972,2]
[334784114,1723559443099,-500.0,0.00013972,2]
[334784115,1723559443109,-500.0,0.00013972,2]
[334784116,1723559443119,-886.67,0.00013972,2]
[334784117,1723559443128,-500.0,0.00013972,2]
[334784118,1723559443139,-790.37,0.00013972,2]
[334784119,1723559443149,-500.0,0.00013972,2]
[334784120,1723559443158,-578.67,0.00013972,2]
[334784121,1723559443168,-500.0,0.00013972,2]
[334784122,1723559443178,-500.0,0.00013972,2]
[334784123,1723559443188,-538.63,0.00013972,2]
[334784124,1723559443198,-500.0,0.00013972,2]
[334784125,1723559443208,-500.0,0.00013972,2]
[334784126,1723559443218,-655.98,0.00013972,2]
[334784127,1723559443230,-803.13,0.00013972,2]
[334784128,1723559443240,-500.0,0.00013972,2]
[334784129,1723559443249,-500.0,0.00013972,2]
[334784130,1723559443258,-500.0,0.00013972,2]
[334784131,1723559443268,-500.0,0.00013972,2]
[334784132,1723559443278,-470.64764857,0.00013972,2]
[334784133,1723559443292,-500.0,0.00013972,2]
[334784134,1723559443302,-500.0,0.00013972,2]
[334784135,1723559443312,-500.0,0.00013972,2]
[334784136,1723559443321,-500.0,0.00013972,2]
[334784137,1723559443331,-192.72976493,0.00013972,2]
[334784138,1723559443340,-500.0,0.00013972,2]
[334784139,1723559443349,-500.0,0.00013972,2]
[334784140,1723559443359,-500.0,0.00013972,2]
[334784141,1723559443368,-522.27,0.00013972,2]
[334784142,1723559443378,-500.0,0.00013972,2]
[334784143,1723559443387,-500.0,0.00013972,2]
[334784144,1723559443397,-500.0,0.00013972,2]
[334784145,1723559443406,-500.0,0.00013972,2]
[334784146,1723559443416,-500.0,0.00013972,2]
[334784147,1723559443426,-500.0,0.00013972,2]
[334784148,1723559443435,-500.0,0.00013972,2]
[334784149,1723559443445,-500.0,0.00013972,2]
[334784150,1723559443454,-500.0,0.00013972,2]
[334784152,1723559443464,-500.0,0.00013972,2]
[334784154,1723559443473,-580.36,0.00013972,2]
[334784155,1723559443483,-758.87,0.00013972,2]
[334784156,1723559443493,-649.12,0.00013972,2]
[334784157,1723559443502,-500.0,0.00013972,2]
[334784158,1723559443511,-500.0,0.00013972,2]
[334784159,1723559443521,-500.0,0.00013972,2]
[334784160,1723559443531,-500.0,0.00013972,2]
[334784161,1723559443544,-500.0,0.00013972,2]
[334784162,1723559443553,-708.34,0.00013972,2]
[334784163,1723559443563,-500.0,0.00013972,2]
[334784164,1723559443572,-500.0,0.00013972,2]
[334784165,1723559443582,-500.0,0.00013972,2]
[334784166,1723559443591,-500.0,0.00013972,2]
[334784167,1723559443601,-500.0,0.00013972,2]
[334784168,1723559443610,-500.0,0.00013972,2]
[334784169,1723559443619,-500.0,0.00013972,2]
[334784170,1723559443629,-508.89044468,0.00013972,2]
[334784171,1723559443638,-500.0,0.00013972,2]
[334784172,1723559443648,-502.89881437,0.00013972,2]
[334784173,1723559443657,-500.0,0.00013972,2]
[334784174,1723559443666,-500.0,0.00013972,2]
[334784175,1723559443675,-160.41819334,0.00013972,2]
[334784176,1723559443685,-500.0,0.00013972,2]
[334784177,1723559443694,-1189.07,0.00013972,2]
[334784178,1723559443706,-656.25,0.00013972,2]
[334784179,1723559443715,-500.0,0.00013972,2]
[334784180,1723559443726,-500.0,0.00013972,2]
[334784181,1723559443735,-500.0,0.00013972,2]
[334784182,1723559443744,-504.60567424,0.00013972,2]
[334784183,1723559443754,-876.28,0.00013972,2]
[334784184,1723559443764,-708.17,0.00013972,2]
[334784185,1723559443773,-486.45266825,0.00013972,2]
[334784186,1723559443787,-1307.35,0.00013972,2]
[334784187,1723559443797,-500.0,0.00013972,2]
[334784188,1723559443806,-720.93,0.00013972,2]
[334784189,1723559443816,-1625.97,0.00013972,2]
[334784190,1723559443825,-818.98,0.00013972,2]
[334784191,1723559443834,-680.48,0.00013972,2]
[334784192,1723559443844,-784.09,0.00013972,2]
[334784193,1723559443853,-515.99551299,0.00013972,2]
[334784194,1723559443863,-2394.91,0.00013972,2]
[334784195,1723559443872,-500.0,0.00013972,2]
[334784196,1723559443881,-1214.43,0.00013972,2]
[334784197,1723559443890,-500.0,0.00013972,2]
[334784198,1723559443899,-163.38219045,0.00013972,2]
[334784199,1723559443908,-5846.7297009,0.00013972,2]
[334784210,1723559446283,-500.0,0.00013698,2]
[334784211,1723559446299,-500.0,0.00013698,2]
[334784213,1723559446311,-505.22362471,0.00013698,2]
[334784214,1723559446321,-365.0502991,0.00013972,2]
[334784215,1723559446331,-673.86,0.00013972,2]
[334784216,1723559446340,-507.10673943,0.00013972,2]
[334784217,1723559446350,-505.59341651,0.00013972,2]
[334784218,1723559446359,-721.64,0.00013972,2]
[334784219,1723559446368,-500.0,0.00013972,2]
[334784220,1723559446378,-1845.84,0.00013972,2]
[334784221,1723559446387,-500.0,0.00013972,2]
[334784222,1723559446396,-500.0,0.00013972,2]
[334784223,1723559446406,-734.5,0.00013972,2]
[334784224,1723559446415,-500.0,0.00013972,2]
[334784225,1723559446424,-500.0,0.00013972,2]
[334784226,1723559446434,-1029.66,0.00013972,2]
[334784227,1723559446443,-500.0,0.00013972,2]
[334784228,1723559446456,-982.15,0.00013972,2]
[334784229,1723559446466,-500.0,0.00013972,2]
[334784230,1723559446475,-500.0,0.00013972,2]
[334784231,1723559446485,-500.0,0.00013972,2]
[334784232,1723559446494,-500.0,0.00013972,2]
[334784233,1723559446504,-500.0,0.00013972,2]
[334784234,1723559446514,-559.51236382,0.00013972,2]
[334784235,1723559446523,-500.0,0.00013972,2]
[334784236,1723559446533,-810.59,0.00013972,2]
[334784237,1723559446546,-848.3,0.00013972,2]
[334784238,1723559446556,-500.0,0.00013972,2]
[334784239,1723559446565,-1448.44,0.00013972,2]
[334784240,1723559446575,-816.05,0.00013972,2]
[334784241,1723559446585,-1035.0,0.00013972,2]
[334784242,1723559446595,-500.0,0.00013972,2]
[334784243,1723559446604,-6071.73,0.00013972,2]
[334784244,1723559446614,-500.0,0.00013972,2]
[334784245,1723559446623,-500.0,0.00013972,2]
[334784246,1723559446632,-801.67,0.00013972,2]
[334784247,1723559446642,-693.72,0.00013972,2]